[Event "*** Titled Tuesday Blitz"]
[Site "Chess.com"]
[Date "2018.04.03"]
[Round "7"]
[White "TomPolgar"]
[Black "PulpanJ"]
[Result "0-1"]
[WhiteElo "2317"]
[BlackElo "2447"]
[TimeControl "180+2"]
[EndTime "14:36:02 PDT"]
[Termination "PulpanJ won by checkmate"]

1. e4 {[%clk 0:03:01.9]} 1... e5 {[%clk 0:02:58.2]} 2. Nf3 {[%clk 0:03:02.1]}
2... Nc6 {[%clk 0:02:58.3]} 3. Nc3 {[%clk 0:03:02.8]} 3... Nf6 {[%clk
0:02:55.8]} 4. d4 {[%clk 0:03:02.9]} 4... exd4 {[%clk 0:02:48.5]} 5. Nxd4 {[%clk
0:03:04.8]} 5... d6 {[%clk 0:02:48.2]} 6. Be3 {[%clk 0:02:54.4]} 6... Be7 {[%clk
0:02:45.7]} 7. Qd2 {[%clk 0:02:53.6]} 7... O-O {[%clk 0:02:41.6]} 8. f3 {[%clk
0:02:53.7]} 8... a6 {[%clk 0:02:36.5]} 9. O-O-O {[%clk 0:02:46.3]} 9... Nxd4
{[%clk 0:02:10.6]} 10. Bxd4 {[%clk 0:02:48.2]} 10... Be6 {[%clk 0:02:12.4]} 11.
g4 {[%clk 0:02:30]} 11... b5 {[%clk 0:01:47.5]} 12. Kb1 {[%clk 0:02:05.3]} 12...
b4 {[%clk 0:01:41.6]} 13. Nd5 {[%clk 0:01:54.4]} 13... c5 {[%clk 0:01:25.6]} 14.
Bxf6 {[%clk 0:01:37]} 14... Bxf6 {[%clk 0:01:26.1]} 15. Bc4 {[%clk 0:01:35.6]}
15... Bd4 {[%clk 0:01:14.6]} 16. h4 {[%clk 0:01:31.4]} 16... a5 {[%clk
0:01:14.2]} 17. h5 {[%clk 0:01:28]} 17... a4 {[%clk 0:01:14.2]} 18. g5 {[%clk
0:01:26]} 18... b3 {[%clk 0:01:14.7]} 19. cxb3 {[%clk 0:01:20.6]} 19... axb3
{[%clk 0:01:15.7]} 20. Bxb3 {[%clk 0:01:19.7]} 20... Kh8 {[%clk 0:00:54.5]} 21.
f4 {[%clk 0:01:09.6]} 21... Rb8 {[%clk 0:00:53.3]} 22. Qd3 {[%clk 0:00:59.6]}
22... Bxd5 {[%clk 0:00:50.5]} 23. exd5 {[%clk 0:00:59.7]} 23... Rb4 {[%clk
0:00:29.2]} 24. Rc1 {[%clk 0:00:44]} 24... Qa5 {[%clk 0:00:20.9]} 25. Rc4 {[%clk
0:00:43.1]} 25... Rxc4 {[%clk 0:00:21.8]} 26. Bxc4 {[%clk 0:00:41.6]} 26... Re8
{[%clk 0:00:22.8]} 27. Rd1 {[%clk 0:00:36.3]} 27... Qc7 {[%clk 0:00:18.1]} 28.
g6 {[%clk 0:00:33.9]} 28... fxg6 {[%clk 0:00:18.7]} 29. hxg6 {[%clk 0:00:34.4]}
29... h6 {[%clk 0:00:20.1]} 30. Qf5 {[%clk 0:00:33.5]} 30... Qb7 {[%clk
0:00:19.2]} 31. Bb3 {[%clk 0:00:22.4]} 31... Bf6 {[%clk 0:00:20.2]} 32. Qc2
{[%clk 0:00:19.8]} 32... Qe7 {[%clk 0:00:20.3]} 33. a4 {[%clk 0:00:17.1]} 33...
Qe3 {[%clk 0:00:21.5]} 34. f5 {[%clk 0:00:16.6]} 34... Rb8 {[%clk 0:00:22.3]}
35. Rd3 {[%clk 0:00:16.1]} 35... Qe1+ {[%clk 0:00:22.7]} 36. Ka2 {[%clk
0:00:17.1]} 36... Qe5 {[%clk 0:00:24]} 37. Rd2 {[%clk 0:00:15.5]} 37... Qf4
{[%clk 0:00:21.3]} 38. Re2 {[%clk 0:00:14.7]} 38... Be5 {[%clk 0:00:17.7]} 39.
Qe4 {[%clk 0:00:09.1]} 39... Qg3 {[%clk 0:00:16.2]} 40. Re3 {[%clk 0:00:08]}
40... Qg5 {[%clk 0:00:16.3]} 41. a5 {[%clk 0:00:07.1]} 41... Qd8 {[%clk
0:00:17.2]} 42. Qa4 {[%clk 0:00:06.7]} 42... Ra8 {[%clk 0:00:18.3]} 43. a6
{[%clk 0:00:07]} 43... Qb6 {[%clk 0:00:19.6]} 44. Kb1 {[%clk 0:00:06]} 44... c4
{[%clk 0:00:19]} 45. Rxe5 {[%clk 0:00:04.2]} 45... dxe5 {[%clk 0:00:17.9]} 46.
Bxc4 {[%clk 0:00:05.7]} 46... e4 {[%clk 0:00:18.3]} 47. Qc6 {[%clk 0:00:05.6]}
47... Qa7 {[%clk 0:00:18.1]} 48. d6 {[%clk 0:00:06.2]} 48... e3 {[%clk
0:00:19.2]} 49. d7 {[%clk 0:00:07.4]} 49... Rd8 {[%clk 0:00:16.5]} 50. Bb5
{[%clk 0:00:08.1]} 50... e2 {[%clk 0:00:17.2]} 51. Bxe2 {[%clk 0:00:08.7]} 51...
Qd4 {[%clk 0:00:14.7]} 52. Bb5 {[%clk 0:00:08.9]} 52... Qd1+ {[%clk 0:00:12]}
53. Ka2 {[%clk 0:00:09.5]} 53... Qd4 {[%clk 0:00:13.2]} 54. Qc8 {[%clk 0:00:08]}
54... Qd5+ {[%clk 0:00:14.4]} 55. Bc4 {[%clk 0:00:08.6]} 55... Qa5+ {[%clk
0:00:15.5]} 56. Kb3 {[%clk 0:00:08.1]} 56... Qb6+ {[%clk 0:00:16.7]} 57. Ka4
{[%clk 0:00:07.9]} 57... h5 {[%clk 0:00:16.2]} 58. Qb7 {[%clk 0:00:05.2]} 58...
Qd4 {[%clk 0:00:16.1]} 59. b3 {[%clk 0:00:05.1]} 59... Qa1+ {[%clk 0:00:16.3]}
60. Kb5 {[%clk 0:00:05.5]} 60... Qe5+ {[%clk 0:00:16.6]} 61. Qd5 {[%clk
0:00:05.4]} 61... Rb8+ {[%clk 0:00:16.8]} 62. Kc6 {[%clk 0:00:04.5]} 62... Qf6+
{[%clk 0:00:17.1]} 63. Qd6 {[%clk 0:00:05.2]} 63... Rb6+ {[%clk 0:00:18.1]} 64.
Kxb6 {[%clk 0:00:05.5]} 64... Qxd6+ {[%clk 0:00:19.5]} 65. Kb7 {[%clk
0:00:06.3]} 65... Qxd7+ {[%clk 0:00:21]} 66. Kb8 {[%clk 0:00:06.1]} 66... Qd6+
{[%clk 0:00:21.4]} 67. Kb7 {[%clk 0:00:06.7]} 67... Qb4+ {[%clk 0:00:22.7]} 68.
Kc7 {[%clk 0:00:06.8]} 68... Qa5+ {[%clk 0:00:23.5]} 69. Kb7 {[%clk 0:00:07.7]}
69... Qb4+ {[%clk 0:00:24.7]} 70. Kc7 {[%clk 0:00:08.7]} 70... Qe7+ {[%clk
0:00:25.7]} 71. Kb8 {[%clk 0:00:09.5]} 71... Qd6+ {[%clk 0:00:26.2]} 72. Kb7
{[%clk 0:00:10]} 72... Qd7+ {[%clk 0:00:23.4]} 73. Kb8 {[%clk 0:00:10.7]} 73...
h4 {[%clk 0:00:22.3]} 74. a7 {[%clk 0:00:11.3]} 74... Qd8+ {[%clk 0:00:22.5]}
75. Kb7 {[%clk 0:00:12.4]} 75... Qd7+ {[%clk 0:00:23.6]} 76. Kb8 {[%clk
0:00:12.6]} 76... Qd8+ {[%clk 0:00:24]} 77. Kb7 {[%clk 0:00:13.9]} 77... Qe7+
{[%clk 0:00:21.3]} 78. Kb8 {[%clk 0:00:14.9]} 78... Qb4+ {[%clk 0:00:21.7]} 79.
Kc7 {[%clk 0:00:15.4]} 79... Qc5+ {[%clk 0:00:21.4]} 80. Kb8 {[%clk 0:00:16.4]}
80... Qb6+ {[%clk 0:00:21.9]} 81. Ka8 {[%clk 0:00:16]} 81... Qc7 {[%clk
0:00:22.9]} 82. Be6 {[%clk 0:00:12.5]} 82... h3 {[%clk 0:00:22.8]} 83. f6 {[%clk
0:00:07.8]} 83... h2 {[%clk 0:00:22.8]} 84. Bd5 {[%clk 0:00:06.6]} 84... Qc8#
{[%clk 0:00:22.2]} 0-1

[Event "*** Titled Tuesday Blitz"]
[Site "Chess.com"]
[Date "2018.04.03"]
[Round "8"]
[White "wonderfultime"]
[Black "Batica1984"]
[Result "1-0"]
[WhiteElo "2756"]
[BlackElo "2635"]
[TimeControl "180+2"]
[EndTime "14:38:06 PDT"]
[Termination "wonderfultime won by resignation"]

1. d4 {[%clk 0:03:01.9]} 1... Nf6 {[%clk 0:02:58.8]} 2. c4 {[%clk 0:03:02.6]}
2... c5 {[%clk 0:02:54.6]} 3. d5 {[%clk 0:03:03.5]} 3... b5 {[%clk 0:02:55.4]}
4. Nd2 {[%clk 0:03:04.5]} 4... bxc4 {[%clk 0:02:51.5]} 5. e4 {[%clk 0:03:05.7]}
5... g6 {[%clk 0:02:49.9]} 6. Qc2 {[%clk 0:03:00.8]} 6... Bg7 {[%clk 0:02:49.6]}
7. Bxc4 {[%clk 0:02:54.7]} 7... Bb7 {[%clk 0:02:47.5]} 8. Ne2 {[%clk 0:02:50.2]}
8... O-O {[%clk 0:02:47.4]} 9. O-O {[%clk 0:02:50.9]} 9... d6 {[%clk 0:02:44.3]}
10. Nc3 {[%clk 0:02:50.9]} 10... Nbd7 {[%clk 0:02:41.5]} 11. b3 {[%clk
0:02:51.9]} 11... Nxe4 {[%clk 0:02:35.3]} 12. Ndxe4 {[%clk 0:02:52]} 1-0

[Event "*** Titled Tuesday Blitz"]
[Site "Chess.com"]
[Date "2018.04.03"]
[Round "8"]
[White "eldur16"]
[Black "kjzsdu"]
[Result "1-0"]
[WhiteElo "2568"]
[BlackElo "2440"]
[TimeControl "180+2"]
[EndTime "14:38:22 PDT"]
[Termination "eldur16 won by resignation"]

1. e4 {[%clk 0:03:01.9]} 1... c5 {[%clk 0:03:00.4]} 2. Ne2 {[%clk 0:03:01.9]}
2... a6 {[%clk 0:02:56.7]} 3. g3 {[%clk 0:03:01.3]} 3... b6 {[%clk 0:02:57]} 4.
Bg2 {[%clk 0:03:01.6]} 4... Bb7 {[%clk 0:02:58.2]} 5. d4 {[%clk 0:03:01.9]} 5...
cxd4 {[%clk 0:02:57.1]} 6. Nxd4 {[%clk 0:03:02.4]} 6... e6 {[%clk 0:02:57.6]} 7.
Nc3 {[%clk 0:03:02.2]} 7... Nf6 {[%clk 0:02:58.5]} 8. O-O {[%clk 0:03:02.4]}
8... Bb4 {[%clk 0:02:59.1]} 9. Re1 {[%clk 0:02:50.3]} 9... O-O {[%clk
0:02:54.9]} 10. Bg5 {[%clk 0:02:43.5]} 10... Nc6 {[%clk 0:02:42]} 11. e5 {[%clk
0:02:40.3]} 11... h6 {[%clk 0:02:41.4]} 12. Bxf6 {[%clk 0:02:31.6]} 12... g6
{[%clk 0:02:41.4]} 1-0

[Event "*** Titled Tuesday Blitz"]
[Site "Chess.com"]
[Date "2018.04.03"]
[Round "8"]
[White "HanSchut"]
[Black "Vadim_Biliy"]
[Result "1-0"]
[WhiteElo "2195"]
[BlackElo "2105"]
[TimeControl "180+2"]
[EndTime "14:40:15 PDT"]
[Termination "HanSchut won by resignation"]

1. e4 {[%clk 0:03:01.8]} 1... e5 {[%clk 0:02:59.2]} 2. Nf3 {[%clk 0:03:01.1]}
2... Nc6 {[%clk 0:02:59.5]} 3. Bc4 {[%clk 0:03:02.5]} 3... Be7 {[%clk
0:02:58.7]} 4. d4 {[%clk 0:03:02.6]} 4... d6 {[%clk 0:02:57.9]} 5. h3 {[%clk
0:03:02.4]} 5... Nf6 {[%clk 0:02:57.1]} 6. Nc3 {[%clk 0:03:03.5]} 6... O-O
{[%clk 0:02:55.6]} 7. O-O {[%clk 0:03:03.9]} 7... a6 {[%clk 0:02:50.2]} 8. a4
{[%clk 0:03:04.2]} 8... Bd7 {[%clk 0:02:40.2]} 9. Be3 {[%clk 0:03:01.6]} 9... h6
{[%clk 0:02:39.7]} 10. a5 {[%clk 0:03:02.2]} 10... Nh7 {[%clk 0:02:35.7]} 11.
Qd2 {[%clk 0:02:59.4]} 11... Bf6 {[%clk 0:02:35.7]} 12. Rfd1 {[%clk 0:02:51.9]}
12... Qc8 {[%clk 0:02:33]} 13. Kh2 {[%clk 0:02:45.8]} 13... Ne7 {[%clk
0:02:32.4]} 14. dxe5 {[%clk 0:02:44.3]} 14... Bg5 {[%clk 0:02:21.9]} 15. Nxg5
{[%clk 0:02:40.4]} 15... hxg5 {[%clk 0:02:15.7]} 16. Bxg5 {[%clk 0:02:37.4]}
16... Ng6 {[%clk 0:02:03.2]} 17. exd6 {[%clk 0:02:20.2]} 17... cxd6 {[%clk
0:02:02.2]} 18. Bb3 {[%clk 0:02:13.6]} 18... Be6 {[%clk 0:01:50]} 19. Nd5 {[%clk
0:02:11.7]} 19... Ne5 {[%clk 0:01:46.8]} 20. Ne7+ {[%clk 0:02:09.4]} 1-0

[Event "*** Titled Tuesday Blitz"]
[Site "Chess.com"]
[Date "2018.04.03"]
[Round "8"]
[White "Marcus_Harvey"]
[Black "DACF2905"]
[Result "1-0"]
[WhiteElo "2598"]
[BlackElo "2054"]
[TimeControl "180+2"]
[EndTime "14:40:16 PDT"]
[Termination "Marcus_Harvey won by resignation"]

1. d4 {[%clk 0:03:01.9]} 1... Nf6 {[%clk 0:02:59.7]} 2. Nf3 {[%clk 0:03:03.1]}
2... e6 {[%clk 0:02:58.1]} 3. Bf4 {[%clk 0:03:04.4]} 3... d6 {[%clk 0:02:56.5]}
4. e3 {[%clk 0:03:04.5]} 4... Be7 {[%clk 0:02:57.3]} 5. h3 {[%clk 0:03:04.9]}
5... O-O {[%clk 0:02:58.2]} 6. c4 {[%clk 0:03:06.1]} 6... c5 {[%clk 0:02:57.8]}
7. Nc3 {[%clk 0:03:06.9]} 7... Nc6 {[%clk 0:02:58.1]} 8. dxc5 {[%clk 0:03:05]}
8... dxc5 {[%clk 0:02:56.8]} 9. Be2 {[%clk 0:03:06.2]} 9... b6 {[%clk
0:02:53.8]} 10. O-O {[%clk 0:03:05.8]} 10... Bb7 {[%clk 0:02:54.5]} 11. Nb5
{[%clk 0:03:04.8]} 11... Ne4 {[%clk 0:02:29.1]} 12. Qb1 {[%clk 0:03:01.4]} 12...
Nb4 {[%clk 0:02:16.6]} 13. Rd1 {[%clk 0:03:00.9]} 13... Qc8 {[%clk 0:02:09.3]}
14. Nc7 {[%clk 0:03:00.8]} 14... Rb8 {[%clk 0:01:52.7]} 15. Nb5 {[%clk
0:03:01.7]} 15... Ra8 {[%clk 0:01:52.7]} 16. Nc7 {[%clk 0:03:02.8]} 16... Rb8
{[%clk 0:01:53.1]} 17. a3 {[%clk 0:03:04.4]} 17... Na6 {[%clk 0:01:53.2]} 18.
Nxa6 {[%clk 0:03:04.8]} 18... Bxa6 {[%clk 0:01:51.2]} 19. Bxb8 {[%clk
0:03:03.5]} 19... Qxb8 {[%clk 0:01:51]} 20. Qxe4 {[%clk 0:03:03.5]} 20... Bb7
{[%clk 0:01:49.6]} 21. Qf4 {[%clk 0:03:02.3]} 21... Qa8 {[%clk 0:01:49.2]} 22.
Rd7 {[%clk 0:03:01.9]} 22... Bf6 {[%clk 0:01:49.8]} 23. Ne5 {[%clk 0:02:55.7]}
23... Bxg2 {[%clk 0:01:49.1]} 24. Bf3 {[%clk 0:02:56.9]} 24... Bxe5 {[%clk
0:01:48]} 25. Bxa8 {[%clk 0:02:56.4]} 25... Bxf4 {[%clk 0:01:48.7]} 26. Bxg2
{[%clk 0:02:57.4]} 26... Be5 {[%clk 0:01:49.4]} 27. Rb1 {[%clk 0:02:58.1]} 27...
a5 {[%clk 0:01:48.2]} 28. b4 {[%clk 0:02:58.9]} 28... axb4 {[%clk 0:01:48.4]}
29. axb4 {[%clk 0:03:00.8]} 29... f5 {[%clk 0:01:48]} 30. b5 {[%clk 0:02:54.4]}
1-0

[Event "*** Titled Tuesday Blitz"]
[Site "Chess.com"]
[Date "2018.04.03"]
[Round "8"]
[White "FearNoEvil12"]
[Black "indfraeng"]
[Result "0-1"]
[WhiteElo "1980"]
[BlackElo "1834"]
[TimeControl "180+2"]
[EndTime "14:42:20 PDT"]
[Termination "indfraeng won by checkmate"]

1. e4 {[%clk 0:03:01.9]} 1... c6 {[%clk 0:02:56.1]} 2. d4 {[%clk 0:03:00.8]}
2... d5 {[%clk 0:02:55.8]} 3. Nc3 {[%clk 0:03:02.1]} 3... dxe4 {[%clk
0:02:56.1]} 4. Nxe4 {[%clk 0:03:04]} 4... Nd7 {[%clk 0:02:56.2]} 5. Ng3 {[%clk
0:03:04.9]} 5... Ngf6 {[%clk 0:02:56.1]} 6. Bc4 {[%clk 0:03:06.3]} 6... e6
{[%clk 0:02:55.4]} 7. N1e2 {[%clk 0:03:07.5]} 7... Be7 {[%clk 0:02:55.2]} 8. O-O
{[%clk 0:03:07.9]} 8... O-O {[%clk 0:02:55.6]} 9. f4 {[%clk 0:03:08.7]} 9... c5
{[%clk 0:02:52.3]} 10. c3 {[%clk 0:03:06.8]} 10... cxd4 {[%clk 0:02:52.4]} 11.
cxd4 {[%clk 0:03:07.2]} 11... Nb6 {[%clk 0:02:52.7]} 12. Bd3 {[%clk 0:03:07.2]}
12... Nbd5 {[%clk 0:02:30.7]} 13. f5 {[%clk 0:03:07.5]} 13... Ng4 {[%clk
0:02:11]} 14. Nf4 {[%clk 0:02:50.9]} 14... Nxf4 {[%clk 0:02:07.8]} 15. Rxf4
{[%clk 0:02:45.4]} 15... exf5 {[%clk 0:02:06.7]} 16. Bxf5 {[%clk 0:02:42.2]}
16... Bxf5 {[%clk 0:02:07.4]} 17. Nxf5 {[%clk 0:02:42.2]} 17... Nf6 {[%clk
0:02:06.6]} 18. Qf3 {[%clk 0:02:21.9]} 18... Bd6 {[%clk 0:01:57.3]} 19. Nxg7
{[%clk 0:02:12.9]} 19... Bxf4 {[%clk 0:01:45.5]} 20. Qxf4 {[%clk 0:02:13.2]}
20... Kxg7 {[%clk 0:01:40.7]} 21. Qh6+ {[%clk 0:02:12.7]} 21... Kg8 {[%clk
0:01:41.1]} 22. Be3 {[%clk 0:02:07]} 22... Ng4 {[%clk 0:01:41.2]} 23. Qf4 {[%clk
0:01:59.1]} 23... Nxe3 {[%clk 0:01:39]} 24. Qxe3 {[%clk 0:01:59.9]} 24... Qb6
{[%clk 0:01:38.7]} 25. Rf1 {[%clk 0:01:57.6]} 25... Rfe8 {[%clk 0:01:35]} 26.
Qf2 {[%clk 0:01:54.2]} 26... Qg6 {[%clk 0:01:34.3]} 27. Qh4 {[%clk 0:01:49.3]}
27... Re4 {[%clk 0:01:32.4]} 28. Qh3 {[%clk 0:01:47.6]} 28... Rae8 {[%clk
0:01:27.7]} 29. Qc3 {[%clk 0:01:20.4]} 29... Re2 {[%clk 0:01:25.2]} 30. Qf3
{[%clk 0:01:18.6]} 30... Re1 {[%clk 0:01:23]} 31. h3 {[%clk 0:01:17.9]} 31...
Rxf1+ {[%clk 0:01:22.8]} 32. Kxf1 {[%clk 0:01:18.2]} 32... Qb1+ {[%clk 0:01:22]}
33. Kf2 {[%clk 0:01:19.1]} 33... Qe1# {[%clk 0:01:23.3]} 0-1

[Event "*** Titled Tuesday Blitz"]
[Site "Chess.com"]
[Date "2018.04.03"]
[Round "8"]
[White "BogdanDeac"]
[Black "Divertissement"]
[Result "1-0"]
[WhiteElo "2688"]
[BlackElo "2456"]
[TimeControl "180+2"]
[EndTime "14:42:29 PDT"]
[Termination "BogdanDeac won by resignation"]

1. d4 {[%clk 0:03:01.4]} 1... Nf6 {[%clk 0:02:39.5]} 2. c4 {[%clk 0:03:01.5]}
2... g6 {[%clk 0:02:39.7]} 3. g3 {[%clk 0:03:02.1]} 3... Bg7 {[%clk 0:02:41]} 4.
Bg2 {[%clk 0:03:03.2]} 4... O-O {[%clk 0:02:42.7]} 5. Nf3 {[%clk 0:03:03.9]}
5... d6 {[%clk 0:02:44.2]} 6. Nc3 {[%clk 0:03:04.8]} 6... Nbd7 {[%clk
0:02:44.9]} 7. O-O {[%clk 0:03:05.5]} 7... e5 {[%clk 0:02:46.5]} 8. e4 {[%clk
0:03:07]} 8... exd4 {[%clk 0:02:43.9]} 9. Nxd4 {[%clk 0:03:07.4]} 9... a6 {[%clk
0:02:44.9]} 10. Qc2 {[%clk 0:03:05.6]} 10... Rb8 {[%clk 0:02:45.4]} 11. Rd1
{[%clk 0:03:06.4]} 11... c5 {[%clk 0:02:44.2]} 12. Nde2 {[%clk 0:03:06.8]} 12...
b5 {[%clk 0:02:32.7]} 13. Rxd6 {[%clk 0:03:06.1]} 13... bxc4 {[%clk 0:02:29.3]}
14. Bf4 {[%clk 0:03:01.2]} 14... Nh5 {[%clk 0:02:22.7]} 15. Be3 {[%clk
0:03:01.2]} 15... Qc7 {[%clk 0:02:05]} 16. Rad1 {[%clk 0:02:54.1]} 16... Ne5
{[%clk 0:02:05.7]} 17. R6d5 {[%clk 0:02:53.2]} 17... Nd3 {[%clk 0:02:00.3]} 18.
b3 {[%clk 0:02:44.7]} 18... Nb4 {[%clk 0:01:56.9]} 19. Qd2 {[%clk 0:02:45.4]}
19... Nxd5 {[%clk 0:01:52.7]} 20. Nxd5 {[%clk 0:02:44]} 20... c3 {[%clk
0:01:38.5]} 21. Nexc3 {[%clk 0:02:42.2]} 21... Qa5 {[%clk 0:01:23.4]} 22. Na4
{[%clk 0:02:20.7]} 22... Qxd2 {[%clk 0:01:19.9]} 23. Bxd2 {[%clk 0:02:21.5]}
23... Bd4 {[%clk 0:01:15.4]} 24. Ne7+ {[%clk 0:02:21.6]} 24... Kg7 {[%clk
0:01:14.4]} 25. Nc6 {[%clk 0:02:21.5]} 25... Bg4 {[%clk 0:01:06]} 26. Rc1 {[%clk
0:02:19.4]} 26... Rbc8 {[%clk 0:01:02.7]} 27. e5 {[%clk 0:02:04]} 27... Bd7
{[%clk 0:00:55]} 28. Nxd4 {[%clk 0:02:04.6]} 28... cxd4 {[%clk 0:00:55.9]} 29.
Nc5 {[%clk 0:02:05.2]} 29... Bc6 {[%clk 0:00:47.4]} 30. g4 {[%clk 0:01:59.9]}
30... Bxg2 {[%clk 0:00:44]} 31. Kxg2 {[%clk 0:02:00.1]} 31... Rfd8 {[%clk
0:00:38.2]} 32. gxh5 {[%clk 0:01:59.7]} 32... Rd5 {[%clk 0:00:39.7]} 33. Ne6+
{[%clk 0:01:59.8]} 1-0

[Event "*** Titled Tuesday Blitz"]
[Site "Chess.com"]
[Date "2018.04.03"]
[Round "8"]
[White "nicegg"]
[Black "andante"]
[Result "0-1"]
[WhiteElo "1894"]
[BlackElo "2195"]
[TimeControl "180+2"]
[EndTime "14:42:52 PDT"]
[Termination "andante won on time"]

1. e4 {[%clk 0:03:01.9]} 1... c5 {[%clk 0:03:00.1]} 2. Qh5 {[%clk 0:03:02]} 2...
e6 {[%clk 0:02:57]} 3. f4 {[%clk 0:03:02.8]} 3... Nc6 {[%clk 0:02:56.6]} 4. c3
{[%clk 0:03:03.4]} 4... g6 {[%clk 0:02:53.2]} 5. Qf3 {[%clk 0:03:03.9]} 5... Bg7
{[%clk 0:02:53.8]} 6. d3 {[%clk 0:03:04.8]} 6... Nf6 {[%clk 0:02:53.6]} 7. g4
{[%clk 0:03:05.4]} 7... d5 {[%clk 0:02:53.6]} 8. Ne2 {[%clk 0:03:03.8]} 8... e5
{[%clk 0:02:26.4]} 9. f5 {[%clk 0:02:57.6]} 9... dxe4 {[%clk 0:02:04.5]} 10.
dxe4 {[%clk 0:02:55.5]} 10... h5 {[%clk 0:02:03.1]} 11. g5 {[%clk 0:02:45.1]}
11... Nxe4 {[%clk 0:02:03.3]} 12. fxg6 {[%clk 0:01:22.3]} 12... fxg6 {[%clk
0:01:56.3]} 13. Qxe4 {[%clk 0:01:19.5]} 13... Bf5 {[%clk 0:01:57.7]} 14. Qc4
{[%clk 0:01:12.5]} 14... Qd6 {[%clk 0:01:40.2]} 15. Be3 {[%clk 0:00:58.9]} 15...
O-O-O {[%clk 0:01:27.8]} 16. Nd2 {[%clk 0:00:54]} 16... b6 {[%clk 0:01:13.4]}
17. O-O-O {[%clk 0:00:37]} 17... Na5 {[%clk 0:01:10.4]} 18. Qa6+ {[%clk
0:00:23.3]} 18... Kb8 {[%clk 0:01:11.2]} 19. Bg2 {[%clk 0:00:21.8]} 19... Bd3
{[%clk 0:01:09.9]} 0-1

[Event "*** Titled Tuesday Blitz"]
[Site "Chess.com"]
[Date "2018.04.03"]
[Round "8"]
[White "Supernotar"]
[Black "Generalas"]
[Result "1-0"]
[WhiteElo "2256"]
[BlackElo "2175"]
[TimeControl "180+2"]
[EndTime "14:42:54 PDT"]
[Termination "Supernotar won by checkmate"]

1. d4 {[%clk 0:02:57.9]} 1... Nf6 {[%clk 0:02:52.8]} 2. c4 {[%clk 0:02:58.7]}
2... e6 {[%clk 0:02:49.6]} 3. Nf3 {[%clk 0:02:59.3]} 3... c5 {[%clk 0:02:48.8]}
4. d5 {[%clk 0:02:59.8]} 4... b5 {[%clk 0:02:48.6]} 5. Bg5 {[%clk 0:03:00.3]}
5... bxc4 {[%clk 0:02:43.1]} 6. Nc3 {[%clk 0:03:00.7]} 6... h6 {[%clk
0:02:29.5]} 7. Bxf6 {[%clk 0:02:59.3]} 7... Qxf6 {[%clk 0:02:29.7]} 8. e4 {[%clk
0:03:00.4]} 8... Ba6 {[%clk 0:02:23.3]} 9. Qa4 {[%clk 0:02:57.1]} 9... Bd6
{[%clk 0:02:18.8]} 10. Bxc4 {[%clk 0:02:55.5]} 10... Bxc4 {[%clk 0:02:18.8]} 11.
Qxc4 {[%clk 0:02:55.9]} 11... O-O {[%clk 0:02:20.2]} 12. O-O {[%clk 0:02:56.4]}
12... e5 {[%clk 0:02:05.7]} 13. Nb5 {[%clk 0:02:48.9]} 13... a6 {[%clk 0:02:04]}
14. Nxd6 {[%clk 0:02:45.6]} 14... Qxd6 {[%clk 0:02:05.9]} 15. Rfc1 {[%clk
0:02:46.4]} 15... Qg6 {[%clk 0:01:45.8]} 16. Qxc5 {[%clk 0:02:43.4]} 16... d6
{[%clk 0:01:35.2]} 17. Qc7 {[%clk 0:02:36.3]} 17... a5 {[%clk 0:01:34.6]} 18.
Qb7 {[%clk 0:02:33.6]} 18... Na6 {[%clk 0:01:34.2]} 19. Nd2 {[%clk 0:02:30.3]}
19... Nc5 {[%clk 0:01:34.1]} 20. Qe7 {[%clk 0:02:25.7]} 20... Rae8 {[%clk
0:01:22.6]} 21. Qh4 {[%clk 0:02:25.8]} 21... f5 {[%clk 0:01:21.2]} 22. exf5
{[%clk 0:02:23.9]} 22... Qxf5 {[%clk 0:01:20.2]} 23. Rf1 {[%clk 0:02:18]} 23...
e4 {[%clk 0:01:19.6]} 24. Rad1 {[%clk 0:02:15.6]} 24... Re5 {[%clk 0:01:16.7]}
25. Nc4 {[%clk 0:02:14.4]} 25... Rxd5 {[%clk 0:01:17.3]} 26. Nxd6 {[%clk
0:02:15]} 26... Qe6 {[%clk 0:01:09.7]} 27. Nb5 {[%clk 0:02:07.9]} 27... Rg5
{[%clk 0:01:01.2]} 28. Nc3 {[%clk 0:01:59.6]} 28... e3 {[%clk 0:00:57.4]} 29.
fxe3 {[%clk 0:02:00.1]} 29... Qxe3+ {[%clk 0:00:57.8]} 30. Kh1 {[%clk
0:01:59.4]} 30... Nd3 {[%clk 0:00:58.3]} 31. Qc4+ {[%clk 0:01:58.8]} 31... Kh7
{[%clk 0:00:53.5]} 32. Rxf8 {[%clk 0:01:56.8]} 32... Nf2+ {[%clk 0:00:46.7]} 33.
Rxf2 {[%clk 0:01:56.8]} 33... Qxf2 {[%clk 0:00:48.6]} 34. Qe4+ {[%clk
0:01:57.6]} 34... Kg8 {[%clk 0:00:44.9]} 35. Rd8+ {[%clk 0:01:56.9]} 35... Kf7
{[%clk 0:00:45.8]} 36. Qe8+ {[%clk 0:01:55.1]} 36... Kf6 {[%clk 0:00:46.9]} 37.
Rd6+ {[%clk 0:01:50.2]} 37... Kf5 {[%clk 0:00:46.4]} 38. Qe4# {[%clk 0:01:50.5]}
1-0

[Event "*** Titled Tuesday Blitz"]
[Site "Chess.com"]
[Date "2018.04.03"]
[Round "8"]
[White "Caisachess"]
[Black "Cecile-Haussernot"]
[Result "1-0"]
[WhiteElo "2193"]
[BlackElo "2288"]
[TimeControl "180+2"]
[EndTime "14:42:54 PDT"]
[Termination "Caisachess won by resignation"]

1. e4 {[%clk 0:03:01.9]} 1... c5 {[%clk 0:02:37.9]} 2. c3 {[%clk 0:02:59.6]}
2... d6 {[%clk 0:02:38.8]} 3. d4 {[%clk 0:02:58.9]} 3... cxd4 {[%clk 0:02:39.6]}
4. cxd4 {[%clk 0:03:00]} 4... Nf6 {[%clk 0:02:40.5]} 5. Nc3 {[%clk 0:03:01.5]}
5... Nc6 {[%clk 0:02:32.9]} 6. h3 {[%clk 0:03:01.6]} 6... a6 {[%clk 0:02:32.2]}
7. Nf3 {[%clk 0:03:02.6]} 7... e6 {[%clk 0:01:58.3]} 8. Bd3 {[%clk 0:03:00.9]}
8... Be7 {[%clk 0:01:57.5]} 9. a3 {[%clk 0:03:00.2]} 9... O-O {[%clk 0:01:52.8]}
10. O-O {[%clk 0:03:01.5]} 10... b5 {[%clk 0:01:51.6]} 11. Qe2 {[%clk
0:03:00.1]} 11... Qb6 {[%clk 0:01:51.2]} 12. e5 {[%clk 0:02:58.1]} 12... Nd7
{[%clk 0:01:42.8]} 13. Qe4 {[%clk 0:02:44.7]} 13... f5 {[%clk 0:01:43.2]} 14.
exf6 {[%clk 0:02:44.3]} 14... Nxf6 {[%clk 0:01:44.5]} 15. Qh4 {[%clk 0:02:43.9]}
15... b4 {[%clk 0:01:30.1]} 16. Ne4 {[%clk 0:02:26]} 16... Nxd4 {[%clk
0:00:59.2]} 17. Nxf6+ {[%clk 0:02:22.8]} 17... Bxf6 {[%clk 0:01:00.3]} 18. Qxh7+
{[%clk 0:02:22.1]} 18... Kf7 {[%clk 0:01:01]} 19. Ng5+ {[%clk 0:02:09.8]} 19...
Ke7 {[%clk 0:00:58.9]} 20. Ne4 {[%clk 0:02:04.7]} 20... Be5 {[%clk 0:00:49.9]}
21. Bg5+ {[%clk 0:02:03.4]} 21... Kd7 {[%clk 0:00:49.9]} 22. Nf6+ {[%clk
0:01:36.8]} 22... Bxf6 {[%clk 0:00:20.1]} 23. Bxf6 {[%clk 0:01:35.5]} 23... Bb7
{[%clk 0:00:20.4]} 24. Qxg7+ {[%clk 0:01:34.2]} 24... Kc6 {[%clk 0:00:20.6]} 25.
Bxd4 {[%clk 0:01:34.9]} 25... Qa5 {[%clk 0:00:21.6]} 26. Rac1+ {[%clk 0:01:34]}
1-0